{"text_format":"1","workbook":"xlsx","n_sheets":4,"sheets":["Main Summary","1. Prelims","2. Pricing Schedule","3. Prov Sums"],"not_rendered":{"charts":0,"images":0,"macros":0,"external_links":0,"defined_names":106,"comments":0,"pivot_tables":0},"unopened":[],"bounds":{"document_bytes":16777216,"sheet_cells":100000,"rows_first":2000,"rows_last":500,"rows_between":2000,"halvings":0,"cell_chars":16384,"cell_head_chars":4096},"cells_cut":0,"cells_raw":0,"read":"whole","date_system":"1900"}

{"sheet":"Main Summary","index":0,"n_rows":31,"n_cols":4,"rows_kept":31,"cut":false,"hidden":false,"merged":[]}
[null,"MAIN SUMMARY"]
[]
[]
[null,"Amount of Bill No. 1 - Preliminaries/General Conditions","£",{"$f":"'1. Prelims'!F506","v":0}]
[]
[null,"Amount of Bill No. 2 - Pricing Schedule","£",{"$f":"'2. Pricing Schedule'!H452","v":13015.8}]
[]
[null,"Amount of Bill No. 3 - Prime Cost & Provisional Sums","£",{"$f":"'3. Prov Sums'!F104","v":27250}]
[]
[]
[]
[]
[]
[]
[]
[]
[]
[]
[]
[]
[]
[]
[]
[null,null,"£",{"$f":"SUM(D3:D18)","v":40265.800000000003}]
[]
[]
[null,"Allow for Contingencies ",0.05,{"$f":"ROUND(D24*C27,2)","v":2013.29}]
[]
[]
[]
[null,"AMOUNT TAKEN TO FORM OF TENDER","£",{"$f":"D24+D27","v":42279.090000000004}]

{"sheet":"1. Prelims","index":1,"n_rows":508,"n_cols":6,"rows_kept":508,"cut":false,"hidden":false,"merged":[[371,0,371,5],[418,0,418,5],[472,0,472,5],[507,0,507,5],[49,0,49,5],[101,0,101,5],[158,0,158,5],[212,0,212,5],[266,0,266,5],[319,0,319,5]]}
[]
[]
[]
[]
[null,null,null,null,null,""]
["    ","A PRELIMINARIES",""]
["    ","",""]
["    ","A10 PROJECT PARTICULARS",""]
["    ","",""]
["    ","Include here for all costs associated with the following",""]
["    ","Preliminaries clauses, as detailed within Supplementary",""]
["    ","Preliminaries/General Conditions",""]
["    ","",""]
["    ","Project Particulars",""]
["    ","",""]
["   A","clauses A10.110 - A10.190 inclusive","ITEM","",null,{"$f":"E16","v":0}]
["    ","","",""]
["    ","A11 TENDER AND CONTRACT DOCUMENTS",""]
["    ","",""]
["    ","Include here for all costs associated with the following",""]
["    ","Preliminaries clauses, as detailed within Supplementary",""]
["    ","Preliminaries/General Conditions",""]
["    ","",""]
["    ","Tender and Contract documents",""]
["    ","",""]
["   B","clauses A11.110 - A11.200 inclusive","ITEM","",null,{"$f":"E26","v":0}]
["    ","","",""]
["    ","A12 THE SITE / EXISTING BUILDINGS",""]
["    ","",""]
["    ","Include here for all costs associated with the following",""]
["    ","Preliminaries clauses, as detailed within the Supplementary",""]
["    ","Preliminaries/Generral Conditions",""]
["    ","",""]
["    ","The Site & Existing Buildings",""]
["    ","",""]
["   C","clauses A12.110A - A12.250A inclusive","ITEM","",null,{"$f":"E36","v":0}]
["    ","","",""]
["    ","A13 DESCRIPTION OF THE WORKS",""]
["    ","",""]
["    ","Include here for all costs associated with the following",""]
["    ","Preliminaries clauses, as detailed within the Supplementary",""]
["    ","Preliminaries/General Conditions",""]
["    ","",""]
["    ","Description of the Work",""]
["    ","",""]
["   D","clauses A13.110A - A13.130A inclusive","ITEM","",null,{"$f":"E46","v":0}]
["    ","","",""]
[null,null,null,null,"To Collection :",{"$f":"SUM(F1:F46)","v":0}]
[]
["Page  1  /1"]
[null,null,null,null,""]
[]
[]
[]
[]
[null,null,null,null,null,""]
["    ",null,""]
["    ","A20 THE CONTRACT/SUB-CONTRACT",""]
["    ",null,""]
["    ","",""]
["    ","Include here for all costs associated with the following",""]
["    ","Preliminarier clauses, as detailed within the Supplementary",""]
["    ","Preliminaries/General Conditions",""]
["    ","",""]
["    ","Pricing/Submissions of Documents",""]
["    ","",""]
["A","A 20: JCT / SBCC Standard Building Contract with 2011 Quantities (Edition); fixed charge","ITEM",null,null,{"$f":"E67","v":0}]
["    ","",""]
["B","A 20: JCT / SBCC Standard Building Contract with 2011 Quantities (Edition); time related charge",""]
["    ",null,"ITEM",null,null,{"$f":"E70","v":0}]
["    ","",""]
["    ","A30 TENDERING / SUB-LETTING / SUPPLY",""]
["    ","CONDITIONS",""]
["    ","",""]
["    ","Include here for all costs associated with the following",""]
["    ","Preliminarier clauses, as detailed within the Supplementary",""]
["    ","Preliminaries/General Conditions",""]
["    ","",""]
["    ","Pricing/Submissions of Documents",""]
["    ","",""]
["C","clauses A30.110 - A30.595A inclusive; fixed charge","ITEM",null,null,{"$f":"E81","v":0}]
["    ","",""]
["D","clauses A30.110 - A30.595A inclusive;  timed related",""]
["    ","charge","ITEM",null,null,{"$f":"E84","v":0}]
["    ","",""]
["    ","Subletting/Supply",""]
["    ","",""]
["E","clauses A30.635; fixed charge","ITEM",null,null,{"$f":"E88","v":0}]
["    ","",""]
["F","clauses A30.635; timed related charge","ITEM",null,null,{"$f":"E90","v":0}]
[]
[]
[]
[]
[]
[]
[]
[]
["    ","","",""]
[null,null,null,null,"To Collection :",{"$f":"SUM(F49:F99)","v":0}]
[]
["Page  1  /2"]
[null,null,null,null,""]
[]
[]
[]
[]
[null,null,null,null,null,""]
["    ","A31 PROVISION CONTENT AND USE OF DOCUMENTS",""]
["    ","",""]
["    ","Include here for all costs associated with the following",""]
["    ","Preliminaries clauses, as detailed within the Supplementary",""]
["    ","Preliminaries/General Conditions",""]
["    ","",""]
["    ","Definitions and interpretations",""]
["    ","",""]
["   A","clauses A31.105 - A31.260 inclusive; fixed charge","ITEM","",null,{"$f":"E117","v":0}]
["    ","","",""]
["   B","clauses A31.105 - A31.260 inclusive; time related","",""]
["    ","charge","ITEM","",null,{"$f":"E120","v":0}]
["    ","","",""]
["    ","Documents provided on behalf of Employer",""]
["    ","",""]
["   C","clauses A31.410 - A31.490 inclusive; fixed charge","ITEM","",null,{"$f":"E124","v":0}]
["    ","","",""]
["   D","clauses A31.410 - A31.490 inclusive; time related","",""]
["    ","charge","ITEM","",null,{"$f":"E127","v":0}]
["    ","","",""]
["    ","Documents provided by Contractor/ Subcontractors/",""]
["    ","Suppliers",""]
["    ","",""]
["   E","clauses A31.615 - A31.640 inclusive; fixed charge","ITEM","",null,{"$f":"E132","v":0}]
["    ","","",""]
["   F","clauses A31.615 - A31.640 inclusive; time related","",""]
["    ","charge","ITEM","",null,{"$f":"E135","v":0}]
["    ","","",""]
["    ","A32 MANAGEMENT OF THE WORKS",""]
["    ","",""]
["    ","Include here for all costs associated with the following",""]
["    ","Preliminaries clauses, as detailed within the Supplementary",""]
["    ","Preliminares/General Conditions",""]
["    ","",""]
["    ","Generally",""]
["    ","",""]
["   G","clause A32.110 - A32.150 inclusive; fixed charge","ITEM","",null,{"$f":"E145","v":0}]
["    ","","",""]
["   H","clause A32.110 - A32.150 inclusive; time relared","",""]
["    ","charge","ITEM","",null,{"$f":"E148","v":0}]
["    ","","",""]
["    ","Programme/Progress",""]
["    ","",""]
["   I","clause A32.210B - A32.320 inclusive; fixed charge","ITEM","",null,{"$f":"E152","v":0}]
["    ","","",""]
["   J","clause A32.210B - A32.320 inclusive; time related","",""]
["    ","charge","ITEM","",null,{"$f":"E155","v":0}]
["    ","","",""]
[null,null,null,null,"To Collection :",{"$f":"SUM(F106:F155)","v":0}]
[]
["Page  1  /3"]
[null,null,null,null,""]
[]
[]
[]
[]
[null,null,null,null,null,""]
["    ","Include here for all costs associated with the following",""]
["    ","Preliminaries clauses, as detailed within the Supplementary",""]
["    ","Preliminares/General Conditions",""]
["    ","",""]
["    ","Management and Supervision",""]
["    ","",""]
["   A","clause A32.340 - A32.370 inclusive; fixed charge","ITEM","",null,{"$f":"E172","v":0}]
["    ","","",""]
["   B","clause A32.340 - A32.370 inclusive; time related","",""]
["    ","charge","ITEM","",null,{"$f":"E175","v":0}]
["    ","","",""]
["    ","Control of Cost",""]
["    ","",""]
["   C","clause A32.420 - A32.480 inclusive; fixed charge","ITEM","",null,{"$f":"E179","v":0}]
["    ","","",""]
["   D","clause A32.420 - A32.480 inclusive; time related","",""]
["    ","charge","ITEM","",null,{"$f":"E182","v":0}]
["    ","","",""]
["    ","A33 QUALITY STANDARDS / CONTROL",""]
["    ","",""]
["    ","Include here for all costs associated with the following",""]
["    ","Preliminaries clauses, as detailed within the Supplementary",""]
["    ","Preliminaries/ General Conditions",""]
["    ","",""]
["    ","Standard of Products & Executions",""]
["    ","",""]
["   E","clause A33.110 - A33.185A inclusive; fixed charge","ITEM","",null,{"$f":"E192","v":0}]
["    ","","",""]
["   F","clause A33.110 - A33.185A inclusive; time related","",""]
["    ","charge","ITEM","",null,{"$f":"E195","v":0}]
["    ","","",""]
["    ","Samples/Approvals",""]
["    ","",""]
["   G","clauses A33.210 - A33.235 inclusive; fixed charge","ITEM","",null,{"$f":"E199","v":0}]
["    ","","",""]
["   H","clauses A33.210 - A33.235 inclusive; time related","",""]
["    ","charge","ITEM","",null,{"$f":"E202","v":0}]
["    ","","",""]
["    ","Accuracy/setting out generally",""]
["    ","",""]
["   I","clauses A33.310 - A33.360 inclusive; fixed charge","ITEM","",null,{"$f":"E206","v":0}]
["    ","","",""]
["   J","clauses A33.310 - A33.360 inclusive; time related","",""]
["    ","charge","ITEM","",null,{"$f":"E209","v":0}]
["    ","","",""]
[null,null,null,null,"To Collection :",{"$f":"SUM(F165:F209)","v":0}]
[]
["Page  1  /4"]
[null,null,null,null,""]
[]
[]
[]
[]
[null,null,null,null,null,""]
["    ","Include here for all costs associated with the following",""]
["    ","Preliminaries clauses, as detailed within the Supplementary",""]
["    ","Preliminaries/ General Conditions",""]
["    ","",""]
["    ","Services generally",""]
["    ","",""]
["   A","clauses A33.410A - A33.450 inclusive; fixed charge","ITEM","",null,{"$f":"E226","v":0}]
["    ","","",""]
["   B","clauses A33.410A - A33.450 inclusive; time related","",""]
["    ","charge","ITEM","",null,{"$f":"E229","v":0}]
["    ","","",""]
["    ","Supervision/ Inspection/ Defective Work",""]
["    ","",""]
["   C","clauses A33.460A - A33.635 inclusive; fixed charge","ITEM","",null,{"$f":"E233","v":0}]
["    ","","",""]
["   D","clauses A33.460A - A33.635 inclusive; time related","",""]
["    ","charge","ITEM","",null,{"$f":"E236","v":0}]
["    ","","",""]
["    ","Work at or after Completion",""]
["    ","",""]
["   E","clauses A33.710 - A33.740 inclusive; fixed charge","ITEM","",null,{"$f":"E240","v":0}]
["    ","","",""]
["   F","clauses A33.710 - A33.740 inclusive; time related","",""]
["    ","charge","ITEM","",null,{"$f":"E243","v":0}]
["    ","","",""]
["    ","A34 SECURITY / SAFETY / PROTECTION",""]
["    ","",""]
["    ","Include here for all costs associated with the following",""]
["    ","Preliminaries clauses, as detailed within the Supplementary",""]
["    ","Preliminaries/ General Conditions",""]
["    ","",""]
["    ","Security, health and safety",""]
["    ","",""]
["   G","clauses A34.100 - A34.250 inlcusive; fixed charge","ITEM","",null,{"$f":"E253","v":0}]
["    ","","",""]
["   H","clauses A34.100 - A34.250 inlcusive;  time related","",""]
["    ","charge","ITEM","",null,{"$f":"E256","v":0}]
["    ","","",""]
["    ","Protection against the following",""]
["    ","",""]
["   I","clauses A34.310 - A34.470A inlcusive; fixed charge","ITEM","",null,{"$f":"E260","v":0}]
["    ","","",""]
["   J","clauses A34.310 - A34.470A inlcusive; time related","",""]
["    ","charge","ITEM","",null,{"$f":"E263","v":0}]
["    ","","",""]
[null,null,null,null,"To Collection :",{"$f":"SUM(F219:F264)","v":0}]
[]
["Page  1  /5"]
[null,null,null,null,""]
[]
[]
[]
[]
[null,null,null,null,null,""]
["    ","Include here for all costs associated with the following",""]
["    ","Preliminaries clauses, as detailed within the Supplementary",""]
["    ","Preliminaries/ General Conditions",""]
["    ","",""]
["    ","Protection the following",""]
["    ","",""]
["   A","clauses A34.500 - A34.630 inlcusive; fixed charge","ITEM","",null,{"$f":"E280","v":0}]
["    ","","",""]
["   B","clauses A34.500 - A34.630 inlcusive; time related","",""]
["    ","charge","ITEM","",null,{"$f":"E283","v":0}]
["    ","","",""]
["    ","A35 SPECIFIC LIMITATIONS ON METHOD /",""]
["    ","SEQUENCE / TIMING / USE OF SITE",""]
["    ","",""]
["    ","Include here for all costs associated with the following",""]
["    ","Preliminaries clauses; as detailed within the Supplementary",""]
["    ","Preliminaries/ General Conditions",""]
["    ","",""]
["    ","Generally",""]
["    ","",""]
["   C","clauses A35.110 - A35.180 inlcusive; fixed charge","ITEM","",null,{"$f":"E294","v":0}]
["    ","","",""]
["   D","clauses A35.110 - A35.180 inclusive; time related","",""]
["    ","charge","ITEM","",null,{"$f":"E297","v":0}]
["    ","","",""]
["    ","A36 FACILITIES / TEMPORARY WORKS / SERVICES",""]
["    ","",""]
["    ","Include here for all costs associated with the following",""]
["    ","Preliminaries clauses, as detailed within Supplementary",""]
["    ","Preliminaries/ General Conditions",""]
["    ","",""]
["    ","Generally",""]
["    ","",""]
["   E","clause A36.110; fixed charge","ITEM","",null,{"$f":"E307","v":0}]
["    ","","",""]
["   F","clause A36.110; time related charge","ITEM","",null,{"$f":"E309","v":0}]
["    ","","",""]
["    ","Accommodation",""]
["    ","",""]
["   G","clause A36.210A - A36.285 inclusive; fixed charge","ITEM","",null,{"$f":"E313","v":0}]
["    ","","",""]
["   H","clause A36.210A - A36.285 inclusive; time related","",""]
["    ","charge","ITEM","",null,{"$f":"E316","v":0}]
["    ","","",""]
[null,null,null,null,"To Collection :",{"$f":"SUM(F273:F317)","v":0}]
[]
["Page  1  /6"]
[null,null,null,null,""]
[]
[]
[]
[]
[null,null,null,null,null,""]
["    ","Include here for all costs associated with the following",""]
["    ","Preliminaries clauses, as detailed within Supplementary",""]
["    ","Preliminaries/ General Conditions",""]
["    ","",""]
["    ","Temporary Works",""]
["    ","",""]
["   A","clause A36.310A - A36.340 inclusive; time related","",""]
["    ","charge","ITEM","",null,{"$f":"E334","v":0}]
["    ","","",""]
["    ","Services and Facilities",""]
["    ","",""]
["   B","clause A36.410 - A36.570A inclusive; fixed charge","ITEM","",null,{"$f":"E338","v":0}]
["    ","","",""]
["   C","clause A36.410 - A36.570A inclusive; time related","",""]
["    ","change","ITEM","",null,{"$f":"E341","v":0}]
["    ","","",""]
["    ","A37 OPERATION / MAINTENANCE OF THE FINISHED",""]
["    ","BUILDING",""]
["    ","",""]
["    ","Include here for all costs associated with the following",""]
["    ","Preliminaries clauses, as detailed within the Supplementary",""]
["    ","Preliminaries/ General Conditions",""]
["    ","",""]
["    ","Generally",""]
["    ","",""]
["   D","clauses A37.110A - A137.250 inclusive; fixed charge","ITEM","","n/a",{"$f":"E352","v":"n/a"}]
["    ","","",""]
["   E","clauses A37.110A - A137.250 inclusive; time related","",""]
["    ","charges","ITEM","","n/a",{"$f":"E355","v":"n/a"}]
["    ","","",""]
["    ","A40 MANAGEMENT AND STAFF",""]
["    ","",""]
["    ","Include here for all costs associated with the following",""]
["    ","Preliminaries clauses, as detailed within theSupplementary",""]
["    ","Preliminaries/ General Conditions",""]
["    ","",""]
["    ","Generally",""]
["    ","",""]
["   F","clause A40.110A - A40.120 inclusive; fixed charge","ITEM","",null,{"$f":"E365","v":0}]
["    ","","",""]
["   G","clause A40.110A - A40.120 inclusive; time related","",""]
["    ","charge","ITEM","",null,{"$f":"E368","v":0}]
["    ","","",""]
[null,null,null,null,"To Collection :",{"$f":"SUM(F327:F369)","v":0}]
[]
["Page  1  /7"]
[null,null,null,null,""]
[]
[]
[]
[]
[null,null,null,null,null,""]
["    ","A41 SITE ACCOMMODATION",""]
["    ","",""]
["    ","Include here for all costs associated with the following",""]
["    ","Preliminaries clauses, detailed within the Supplementary",""]
["    ","Preliminaries/ General Conditions",""]
["    ","",""]
["    ","Generally",""]
["    ","",""]
["   A","clause A40.110; fixed charge","ITEM","",null,{"$f":"E387","v":0}]
["    ","","",""]
["   B","clause A40.110; time related charge","ITEM","",null,{"$f":"E389","v":0}]
["    ","","",""]
["    ","A42 SERVICES AND FACILITIES",""]
["    ","",""]
["    ","Include here for all costs associated witht the following",""]
["    ","Preliminaries clauses, as detailed within the Supplementary",""]
["    ","Preliminaries/ General Conditions",""]
["    ","",""]
["    ","Generally",""]
["    ","",""]
["   C","clause A42.110 - A42.310A inclusive; fixed charge","ITEM","",null,{"$f":"E399","v":0}]
["    ","","",""]
["   D","clause A42.110 - A42.310A inclusive; time related","",""]
["    ","charge","ITEM","",null,{"$f":"E402","v":0}]
["    ","","",""]
["    ","A43 CONTRACTORS'S GENERAL COST ITEMS:",""]
["    ","MECHANICAL PLANT",""]
["    ","",""]
["    ","Include here for all costs associated with the following",""]
["    ","Preliminaries clauses, as detailed within the Supplementary",""]
["    ","Preliminaries/ General Conditions",""]
["    ","",""]
["    ","Generally",""]
["    ","",""]
["   E","clause A43.100 - A43.200; fixed charge","ITEM","",null,{"$f":"E413","v":0}]
["    ","","",""]
["   F","clause A43.110 - A43.200; timed related charge","ITEM","",null,{"$f":"E415","v":0}]
["    ","","",""]
[null,null,null,null,"To Collection :",{"$f":"SUM(F376:F416)","v":0}]
[]
["Page  1  /8"]
[null,null,null,null,""]
[]
[]
[]
[]
[null,null,null,null,null,""]
["    ","A44  CONTRACTORS'S GENERAL COST ITEMS;",""]
["    ","TEMPORARY WORKS",""]
["    ","",""]
["    ","Include here for all costs associated with the following",""]
["    ","Preliminaries clauses, as detailed within the Supplementary",""]
["    ","Preliminaries/ General Conditions",""]
["    ","",""]
["    ","Generally",""]
["    ","",""]
["   A","clauses A44.110 - A44.200; fixed charge","ITEM","",null,{"$f":"E435","v":0}]
["    ","","",""]
["   B","clauses A44.110 - A44.200; time related charge","ITEM","",null,{"$f":"E437","v":0}]
["    ","","",""]
["    ","A50 WORK / PRODUCTS BY / ON BEHALF OF THE",""]
["    ","EMPLOYER",""]
["    ","",""]
["    ","Include here for all costs associated with the following",""]
["    ","Preliminariers clauses, as detailed within the Main",""]
["    ","Contract Preliminaries/ General Condtiions",""]
["    ","",""]
["    ","Generally",""]
["    ","",""]
["   C","clause A50.110A - 120A","ITEM","",null,{"$f":"E448","v":0}]
["    ","","",""]
["    ","A53 WORK BY STATUTORY AUTHORITIES / ",""]
["    ","UNDERTAKERS",""]
[]
["    ","Include here for all costs associated with the following",""]
["    ","Preliminaries, as detailed within the Supplementary",""]
["    ","Preliminaries/ General Conditions",""]
["    ","",""]
["    ","Generally",""]
["    ","",""]
["   D","clause A53.110A","ITEM","",null,{"$f":"E459","v":0}]
["    ","","",""]
["    ","A54 PROVISIONAL SUMS",""]
["    ","",""]
["    ","Include here for all costs associated with the following",""]
["    ","Preliminaries, as detailed within the Supplementary",""]
["    ","Preliminaries/ General Conditions",""]
["    ","",""]
["    ","Generally",""]
["    ","",""]
["   E","clause A55.100","ITEM","",null,{"$f":"E469","v":0}]
["    ","","",""]
[null,null,null,null,"To Collection :",{"$f":"SUM(F423:F470)","v":0}]
[]
["Page  1  /9"]
[null,null,null,null,""]
[]
[]
[]
[]
[]
[]
[]
[null,null,null,null,null,""]
[null,""]
[]
[null,"Collection"]
[]
[null,"Page No.  1  /1",null,null,null,{"$f":"F48","v":0}]
[]
[null,"Page No.  1  /2",null,null,null,{"$f":"F100","v":0}]
[]
[null,"Page No.  1  /3",null,null,null,{"$f":"F157","v":0}]
[]
[null,"Page No.  1  /4",null,null,null,{"$f":"F211","v":0}]
[]
[null,"Page No.  1  /5",null,null,null,{"$f":"F265","v":0}]
[]
[null,"Page No.  1  /6",null,null,null,{"$f":"F318","v":0}]
[]
[null,"Page No.  1  /7",null,null,null,{"$f":"F370","v":0}]
[]
[null,"Page No.  1  /8",null,null,null,{"$f":"F417","v":0}]
[]
[null,"Page No.  1  /9",null,null,null,{"$f":"F471","v":0}]
[]
[]
[null,null,null,null,"To Main Summary :",{"$f":"SUM(F487:F504)","v":0}]
[]
["Page  1  /10"]

{"sheet":"2. Pricing Schedule","index":2,"n_rows":452,"n_cols":9,"rows_kept":452,"cut":false,"hidden":false,"merged":[]}
["Classroom spec",null,null,"SITE - Drongan PS "]
[]
["Loc","Loc desc","Description","Spec","quantity","unit","Rate","Total Cost","Comments"]
[30,"Ground Floor  Classroom","Make Good walls/remove staples etc","Remove staples and make good walls",65,"m2",null,{"$f":"SUM(E4*G4)","v":0}]
[30,"Ground Floor  Classroom","Paint walls","Apply 2 coats of eggshell White (3 coats if necessary)  ",65,"m2",null,0,"white"]
[30,"Ground Floor  Classroom","Paint Ceiling","Apply 2 coats of eggshell White (3 coats if necessary)  ",51,"m2",null,0]
[30,"Ground Floor  Classroom","Facings ","Apply 2 coats of white gloss to the facings",33,"m",null,0,"33m2 for both facings and skirtings"]
[30,"Ground Floor  Classroom","Paint pipes","Apply 2 coats of blue gloss BS 20 E 51 to the radiators",37,"m",null,0]
[30,"Ground Floor  Classroom","Paint RADS","Apply 2 coats of blue gloss BS 20 E 51 to the radiators",4,"no",null,0]
[30,"Ground Floor  Classroom","Paint Doors","Rub down existing doors and apply 2 coats of blue gloss BS 20 E 51 ",2,"m2",null,0]
[30,"Ground Floor  Classroom","Door Handle","Remove existing door handle and lock, block up existing holes with timber flush with the door. Fit in new heavy bearing catch lock with double D door handle",1,"no",null,0]
[30,"Ground Floor  Classroom","Uplift and remove old carpet","Uplift old carpet/vinyl, remove and dispose off site ",51,"m2",null,0,"Note - Rhodar may have to carry out these works"]
[30,"Ground Floor  Classroom","Screed Floor","Screed floor with 6mm latex screed",51,"m2",null,0]
[30,"Ground Floor  Classroom","New Vinyl","Supply and install new Vinyl (Polysafe wood fx pur flooring Silver Oak 3357)",51,"m2",null,0]
[30,"Ground Floor  Classroom","New blinds","supply and fit new black out roller blinds all shades white uniline chalk ",3,"no",212.8,638.40000000000009,"treble blinds See Sheet"]
[30,"Ground Floor  Classroom","Box in Pipe & Paint","box in pipes with ply and apply 2 coats of eggshell white paint",1,"m",null,0,"2sided"]
[30,"Ground Floor  Classroom","Whiterock","Supply and install of whiterock Altro whiterock extruded PVCU Sheet W103 EU ",5,"m2",null,0,"Window elevation"]
[30,"Ground Floor  Classroom","Remove blackboard","Remove blackboard (site decision)and dispose offsite. Make good wall with dot dab 12mm plasterboard and tape and fill and paint 2 coats of eggshell white",1,"m2",null,0]
[30,"Ground Floor  Classroom","Pinboards","Supply and install new pinboards Sundeala 12mm K Medium Board",4,"no",null,0]
[32,"Circulation","Paint walls","Apply 2 coats of eggshell White to the top half and bottom half water based eggshell 00A09 grey ",18,"m2",null,0,"half white half grey"]
[32,"Circulation","Paint Ceiling","Apply 2 coats of eggshell White (3 coats if necessary)  ",3,"m2",null,0]
[32,"Circulation","Paint Doors","Rub down existing doors and apply 2 coats of blue gloss BS 20 E 51 ",4,"m2",null,0]
[32,"Circulation","Door Handle","Remove existing door handle and lock, block up existing holes with timber flush with the door. Fit in new heavy bearing catch lock with double D door handle",1,"no",null,0]
[32,"Circulation","Paint pipes","Apply 2 coats of blue gloss BS 20 E 51 to the radiators",3,"m",null,{"$f":"SUM(E24*G24)","v":0}]
[32,"Circulation","Uplift and remove old carpet","Uplift old carpet/vinyl, remove and dispose off site ",3,"m2",null,0,"Note - Rhodar may have to carry out these works"]
[32,"Circulation","Screed Floor","Screed floor with 6mm latex screed",3,"m2",null,0]
[32,"Circulation","New Vinyl","Supply and install new Vinyl (Polysafe silent flor pur flooring Silver Oak 9951)",3,"m2",null,0]
[32,"Circulation","Pinboards","Supply and install new pinboards Sundeala 12mm K Medium Board",6,"no",null,0]
[32,"Circulation","Remove Door","as per attached drawing ",1,null,null,null,"remove first door, do not replace"]
[33,"Ground Floor  Classroom","Make Good walls/remove staples etc","Remove staples and make good walls",53,"m2",null,{"$f":"SUM(E30*G30)","v":0}]
[33,"Ground Floor  Classroom","Paint walls","Apply 2 coats of eggshell White (3 coats if necessary)  ",53,"m2",null,0,"white"]
[33,"Ground Floor  Classroom","Paint Ceiling","Apply 2 coats of eggshell White (3 coats if necessary)  ",67,"m2",null,0]
[33,"Ground Floor  Classroom","Facings ","Apply 2 coats of white gloss to the facings",42,"m",null,0,"44m2 for both facings and skirtings"]
[33,"Ground Floor  Classroom","Paint pipes","Apply 2 coats of blue gloss BS 20 E 51 to the radiators",28,"m",null,0]
[33,"Ground Floor  Classroom","Paint RADS","Apply 2 coats of blue gloss BS 20 E 51 to the radiators",8,"no",null,0]
[33,"Ground Floor  Classroom","Paint Doors","Rub down existing doors and apply 2 coats of blue gloss BS 20 E 51",8,"m2",null,0]
[33,"Ground Floor  Classroom","Door Handle","Remove existing door handle and lock, block up existing holes with timber flush with the door. Fit in new heavy bearing catch lock with double D door handle",1,"no",null,0]
[33,"Ground Floor  Classroom","Uplift and remove old carpet","Uplift old carpet/vinyl, remove and dispose off site ",67,"m2",null,0]
[33,"Ground Floor  Classroom","Screed Floor","Screed floor with 6mm latex screed",67,"m2",null,0]
[33,"Ground Floor  Classroom","New Vinyl","Supply and install new Vinyl (Polysafe wood fx pur flooring Silver Oak 3357)",67,"m2",null,0,"Includes circulation area 032"]
[33,"Ground Floor  Classroom","Remove Old sink","Remove old sink and dispose offsite",1,"no",null,0]
[33,"Ground Floor  Classroom","renew sink/worktop","Howdens all equally approved \nbase unit 1000m with full height doors - GGW9191B\nBase unit 500m - GGW9220                                                                                                                               renew 1 sink - install 1000mm enamel white base unit and insert new sink/taps and install 1500 worktop",1,"no",null,0]
[33,"Ground Floor  Classroom","New blinds","supply and fit new black out roller blinds all shades white uniline chalk ",4,"no",222.6,890.4,"treble blinds See Sheet"]
[33,"Ground Floor  Classroom","Box in Pipe & Paint","box in pipes with ply and apply 2 coats of eggshell white paint",2,"m",null,0,"2sided"]
[33,"Ground Floor  Classroom","Whiterock","Supply and install of whiterock Altro whiterock extruded PVCU Sheet W103 EU ",10,"m2",null,0]
[33,"Ground Floor  Classroom","Remove blackboard","Remove blackboard (site decision)and dispose offsite. Make good wall with dot dab 12mm plasterboard and tape and fill and paint 2 coats of eggshell white",1,"m2",null,0]
[33,"Ground Floor  Classroom","Pinboards","Supply and install new pinboards Sundeala 12mm K Medium Board",4,"no",null,0]
[35,"Veg area outside girls toilet","Paint walls","Apply 2 coats of eggshell White (3 coats if necessary)  ",12,"m2",null,0,"half white half grey"]
[35,"Veg area outside girls toilet","Paint Ceiling","Apply 2 coats of eggshell White (3 coats if necessary)  ",7,"m2",null,0]
[35,"Veg area outside girls toilet","Facings ","Apply 2 coats of white gloss to the facings",10,"m",null,0,"facings and skirtings"]
[35,"Veg area outside girls toilet","Paint Doors","Rub down existing doors and apply 2 coats of blue gloss BS 20 E 51 ",6,"m2",null,0]
[35,"Veg area outside girls toilet","Uplift and remove old carpet","Uplift old carpet/vinyl, remove and dispose off site ",7,"m2",null,0]
[35,"Veg area outside girls toilet","Screed Floor","Screed floor with 6mm latex screed",7,"m2",null,0]
[35,"Veg area outside girls toilet","New Vinyl","Supply and install new Vinyl (Polysafe silent flor pur flooring Silver Oak 9951)",7,"m2",null,0]
[35,"Veg area outside girls toilet","New Doors ","Doorset Type 3 complete, including all ironmongery, as per drawing 001",2,"no",null,0]
[36,"Girls Toilet","Paint walls","Apply 2 coats of  eggshell white to the top half and bottom half Watco paint - Dark Grey RAL7005",26,"m2",null,0,"half white half grey"]
[36,"Girls Toilet","Paint Ceiling","Apply 2 coats of eggshell White (3 coats if necessary)  ",24,"m2",null,0]
[36,"Girls Toilet","Paint Cubicles","metal - white  1 undercoat 2 gloss ",30,"m",null,0]
[36,"Girls Toilet","Paint Cubicle Doors","metal doors  1 undercoat 2 coats of gloss  -  signal red ",23,"m",null,0]
[36,"Girls Toilet","New Cisterns","Armitage Shanks all equally approved, flush handle",7,"no",null,0]
[36,"Girls Toilet","New Toilet Seats","Armitage Shanks white ",9,"no",null,0]
[36,"Girls Toilet","New Toilets","Armitage Shanks low level replacement all equally approved",9,"no",null,{"$f":"SUM(E62*G62)","v":0}]
[36,"Girls Toilet","Paint pipes","Apply 2 coats of blue gloss BS 20 E 51 to the radiators",20,"m",null,0]
[36,"Girls Toilet","Paint RADS","Apply 2 coats of blue gloss BS 20 E 51 to the radiators",1,"no",null,0]
[36,"Girls Toilet","Paint Doors","Rub down existing doors and apply 2 coats of blue gloss BS 20 E 51 ",2,"m2",null,0]
[36,"Girls Toilet","Uplift and remove old carpet","Uplift old carpet/vinyl, remove and dispose off site ",24,"m2",null,0]
[36,"Girls Toilet","Screed Floor","Screed floor with 6mm latex screed",24,"m2",null,0]
[36,"Girls Toilet","New Vinyl","Supply and install new Vinyl (Polysafe flooring - discuss colour with site)",24,"m2",null,0]
[36,"Girls Toilet","Box in Pipe & Paint","box in pipes with ply and apply 2 coats of eggshell white paint",2,"m",null,0,"2sided"]
[36,"Girls Toilet","Whiterock","Supply and install of whiterock Altro whiterock extruded PVCU Sheet W103 EU ",4,"m2",null,0]
[38,"Veg area outside boys toilet","Paint walls","Apply 2 coats of eggshell White (3 coats if necessary)  ",13,"m2",null,0,"half white half grey"]
[38,"Veg area outside boys toilet","Paint Ceiling","Apply 2 coats of eggshell White (3 coats if necessary)  ",6,"m2",null,0]
[38,"Veg area outside boys toilet","Paint Doors","Rub down existing doors and apply 2 coats of blue gloss BS 20 E 51 ",2,"m2",null,0]
[38,"Veg area outside boys toilet","Uplift and remove old carpet","Uplift old carpet/vinyl, remove and dispose off site ",6,"m2",null,0,"2 stairs with 3 nosers and 1.7 facer"]
[38,"Veg area outside boys toilet","Screed Floor","Screed floor with 6mm latex screed",6,"m2",null,0]
[38,"Veg area outside boys toilet","New Vinyl","Supply and install new Vinyl (Polysafe silent flor pur flooring Silver Oak 9951)",6,"m2",null,0]
[38,"Veg area outside boys toilet","New Doors ","Doorset Type 3 complete, including all ironmongery; as per drawing 001",2,"no",null,0,"see sheet"]
["42+45","Stairwell","Make Good walls/remove staples etc","Remove staples and make good walls",20,"m2",null,0]
["42+45","Stairwell","Paint walls","Apply 2 coats of eggshell White to the top half and bottom half water based eggshell 00A09 grey ",120,"m2",null,0,"1/2 grey, 1/2 white, railings black 5m2, varnish handrail - 16.m5"]
["42+45","Stairwell","Paint Ceiling","Apply 2 coats of eggshell White (3 coats if necessary)  ",51,"m2",null,0]
["42+45","Stairwell","Paint RADS","Apply 2 coats of blue gloss BS 20 E 51 to the radiators",3,"no",null,0,"2m2"]
["42+45","Stairwell","New Vinyl","Supply and install new Vinyl (Polysafe silent flor pur flooring Silver Oak 9951)",23,"m2",null,0,"This is for the bottom red area"]
["42+45","Stairwell","Box in Pipe & Paint","box in pipes with ply and apply 2 coats of eggshell white paint",3.5,"m",null,0,"2sided"]
["42+45","Stairwell","Facings ","Apply 2 coats of white gloss to the facings",27,"m",null,0,"red round the fire door"]
["42+45","Stairwell","Skirting","Apply 2 coats of white gloss to the skirting",53,"m",null,0,"black"]
["42+45","Stairwell","Paint Doors","Rub down existing doors and apply 2 coats of blue gloss BS 20 E 51 ",11,"m2",null,{"$f":"SUM(E86*G86)","v":0},"bottom area only"]
["42+45","Stairwell","Varnish handrail","2 coats of  colour varnish - Mahogany",17,"m",null,0]
["42+45","Stairwell","Paint railings","1 undercoat and 2 coats of black metal paint ",5,"m2",null,0,"Black"]
["42+45","Stairwell","Uplift and remove old carpet","Uplift old carpet/vinyl, remove and dispose off site ",23,"m2",null,0]
["42+45","Stairwell","Screed Floor","Screed floor with 6mm latex screed",23,"m2",null,0]
["42+45","Stairwell","Pinboards","Supply and install new pinboards Sundeala 12mm K Medium Board",1,"no",null,0]
[42,"Stairwell","New Doors ","Doorset Type 3 complete, including all ironmongery; as per drawing 001",2,"no",null,0]
[45,"Stairwell","New Doors ","Doorset Type 3 complete, including all ironmongery; as per drawing 001",2,"no",null,0]
[45,"Stairwell","New Partition ","Stud Partition complete, as per drawing 002",6,"m2",null,{"$f":"SUM(E94*G94)","v":0}]
[79,"Ground Floor  Classroom","Make Good walls/remove staples etc","Remove staples and make good walls",51,"m2",null,0]
[79,"Ground Floor  Classroom","Paint walls","Apply 2 coats of eggshell White (3 coats if necessary)  ",51,"m2",null,0,"white"]
[79,"Ground Floor  Classroom","Paint Ceiling","Apply 2 coats of eggshell White (3 coats if necessary)  ",51,"m2",null,0]
[79,"Ground Floor  Classroom","Facings ","Apply 2 coats of white gloss to the facings",33,"m",null,0,"33m2 for both facings and skirtings"]
[79,"Ground Floor  Classroom","Skirting","Apply 2 coats of white gloss to the skirting",0,"m",null,0,"33m2 for both facings and skirtings"]
[79,"Ground Floor  Classroom","Paint pipes","Apply 2 coats of blue gloss BS 20 E 51 to the radiators",37,"m",null,0]
[79,"Ground Floor  Classroom","Paint RADS","Apply 2 coats of blue gloss BS 20 E 51 to the radiators",4,"no",null,0]
[79,"Ground Floor  Classroom","Paint Doors","Rub down existing doors and apply 2 coats of blue gloss BS 20 E 51",2,"m2",null,0]
[79,"Ground Floor  Classroom","Door Handle","Remove existing door handle and lock, block up existing holes with timber flush with the door. Fit in new heavy bearing catch lock with double D door handle",1,"no",null,0]
[79,"Ground Floor  Classroom","Uplift and remove old carpet","Uplift old carpet/vinyl, remove and dispose off site ",51,"m2",null,0]
[79,"Ground Floor  Classroom","Screed Floor","Screed floor with 6mm latex screed",51,"m2",null,0]
[79,"Ground Floor  Classroom","New Vinyl","Supply and install new Vinyl (Polysafe wood fx pur flooring Silver Oak 3357)",51,"m2",null,0]
[79,"Ground Floor  Classroom","New blinds","supply and fit new black out roller blinds all shades white uniline chalk ",4,"no","Various",716.8,"treble blinds See Sheet"]
[79,"Ground Floor  Classroom","Box in Pipe & Paint","box in pipes with ply and apply 2 coats of eggshell white paint",1,"m",null,0,"2sided"]
[79,"Ground Floor  Classroom","Remove blackboard","Remove blackboard (site decision)and dispose offsite. Make good wall with dot dab 12mm plasterboard and tape and fill and paint 2 coats of eggshell white",1,"m2",null,0]
[79,"Ground Floor  Classroom","Pinboards","Supply and install new pinboards Sundeala 12mm K Medium Board",4,"no",null,0,"1x whiteboard"]
[79,"Ground Floor  Classroom","Whiterock","Supply and install of whiterock Altro whiterock extruded PVCU Sheet W103 EU ",5,"m2",null,0,"Window elevation"]
[81,"Circulation","Paint walls","Apply 2 coats of eggshell White to the top half and bottom half water based eggshell 00A09 grey ",18,"m2",null,0,"top half white bottom half grey"]
[81,"Circulation","Paint Ceiling","Apply 2 coats of eggshell White (3 coats if necessary)  ",3,"m2",null,0]
[81,"Circulation","Paint Doors","Rub down existing doors and apply 2 coats of blue gloss BS 20 E 51",4,"m2",null,0]
[81,"Circulation","Door Handle","Remove existing door handle and lock, block up existing holes with timber flush with the door. Fit in new heavy bearing catch lock with double D door handle",1,"no",null,0]
[86,"Upper Classroom","Make Good walls/remove staples etc","Remove staples and make good walls",38,"m2",null,{"$f":"SUM(E116*G116)","v":0}]
[86,"Upper Classroom","Paint Doors","Rub down existing doors and apply 2 coats of blue gloss BS 20 E 51 ",2,"m2",null,0]
[86,"Upper Classroom","Remove Old sink","Remove old sink and dispose offsite",1,"no",null,0]
[86,"Upper Classroom","renew sink/worktop","Howdens all equally approved \nbase unit 1000m with full height doors - GGW9191B\nBase unit 500m - GGW9220                                                                                                                               renew 1 sink - install 1000mm enamel white base unit and insert new sink/taps and install 1500 worktop",1,"no",null,0,"extra 500 unit "]
[86,"Upper Classroom","New blinds","supply and fit new black out roller blinds all shades white uniline chalk ",3,"no",186.2,558.59999999999991,"treble blinds See Sheet"]
[86,"Upper Classroom","Remove blackboard","Remove blackboard (site decision)and dispose offsite. Make good wall with dot dab 12mm plasterboard and tape and fill and paint 2 coats of eggshell white",1,"m2",null,0]
[86,"Upper Classroom","Pinboards","Supply and install new pinboards Sundeala 12mm K Medium Board",4,"no",null,0,"1x whiteboard"]
[86,"Upper Classroom","New Doors ","Doorset Type 1 complete, including all ironmongery as per drawing 001",1,"no",null,0,"see sheet"]
[87,"Upper floor - North","Paint walls","Apply 2 coats of eggshell White (3 coats if necessary)  ",50,"m2",null,0,"white"]
[87,"Upper floor - North","Paint Ceiling","Apply 2 coats of eggshell White (3 coats if necessary)  ",84,"m2",null,0]
[87,"Upper floor - North","Facings ","Apply 2 coats of white gloss to the facings",55,"m",null,0]
[87,"Upper floor - North","Paint pipes","Apply 2 coats of blue gloss BS 20 E 51 to the radiators",34,"m",null,0]
[87,"Upper floor - North","Paint RADS","Apply 2 coats of blue gloss BS 20 E 51 to the radiators",8,"m2",null,0,"Remove RADs and fit 2x new at window"]
[87,"Upper floor - North","Paint Doors","Rub down existing doors and apply 2 coats of blue gloss BS 20 E 51 ",4,"m2",null,0]
[87,"Upper floor - North","Door Handle","Remove existing door handle and lock, block up existing holes with timber flush with the door. Fit in new heavy bearing catch lock with double D door handle",2,"no",null,0]
[87,"Upper floor - North","Uplift and remove old carpet","Uplift old carpet/vinyl, remove and dispose off site ",84,"m2",null,0]
[87,"Upper floor - North","Screed Floor","Screed floor with 6mm latex screed",84,"m2",null,0]
[87,"Upper floor - North","New Vinyl","Supply and install new Vinyl (Polysafe wood fx pur flooring Silver Oak 3357)",84,"m2",null,0]
[87,"Upper floor - North","Make good walls/boxing in/whiterock where units have been removed","to be discussed onsite once cupboards/units removed",11,"m2",null,0]
[87,"Upper floor - North","renew sink/worktop","Howdens all equally approved \nbase unit 1000m with full height doors - GGW9191B\nBase unit 500m - GGW9220                                                                                                                               renew 1 sink - install 1000mm enamel white base unit and insert new sink/taps and install 1500 worktop",1,"no",null,0,"removing all 4 sinks but only putting 1 in in the corner"]
[87,"Upper floor - North","New blinds","supply and fit new black out roller blinds all shades white uniline chalk ",4,"no",159.6,638.4,"treble blinds See Sheet"]
[87,"Upper floor - North","Remove blackboard","Remove blackboard (site decision)and dispose offsite. Make good wall with dot dab 12mm plasterboard and tape and fill and paint 2 coats of eggshell white",1,"m2",null,0]
[87,"Upper floor - North","Remove old worktops/cupboards/units","Remove old existing worktops/units/cupboards and dispose offsite",15,"m",null,0]
[87,"Upper floor - North","Remove Old sink","Remove old sink and dispose offsite",4,"no",null,0,"Remove old units and sinks - 4 Belfast sinks "]
[87,"Upper floor - North","Box in Pipe & Paint","box in pipes with ply and apply 2 coats of eggshell white paint",6,"m",null,0,"pipes 3m & (11.5m by 100mm by 90mm for window elevation area)"]
[87,"Upper floor - North","Pinboards","Supply and install new pinboards Sundeala 12mm K Medium Board",1,"no",null,0,"1x whiteboard"]
[89,"Upper floor - South ","Paint walls","Apply 2 coats of eggshell White (3 coats if necessary)  ",50,"m2",null,{"$f":"SUM(E142*G142)","v":0},"white"]
[89,"Upper floor - South ","Paint Ceiling","Apply 2 coats of eggshell White (3 coats if necessary)  ",84,"m2",null,0]
[89,"Upper floor - South ","Facings ","Apply 2 coats of white gloss to the facings",55,"m",null,0]
[89,"Upper floor - South ","Paint pipes","Apply 2 coats of blue gloss BS 20 E 51 to the radiators",34,"m",null,0]
[89,"Upper floor - South ","New RADS","Supply and fit 2 new RADS",2,"m2",null,0,"Change 2x RADs to new ones"]
[89,"Upper floor - South ","Paint Doors","Rub down existing doors and apply 2 coats of blue gloss BS 20 E 51",4,"m2",null,0]
[89,"Upper floor - South ","Door Handle","Remove existing door handle and lock, block up existing holes with timber flush with the door. Fit in new heavy bearing catch lock with double D door handle",1,"no",null,0]
[89,"Upper floor - South ","Uplift and remove old carpet","Uplift old carpet/vinyl, remove and dispose off site ",84,"m2",null,0]
[89,"Upper floor - South ","Screed Floor","Screed floor with 6mm latex screed",84,"m2",null,0]
[89,"Upper floor - South ","New Vinyl","Supply and install new Vinyl (Polysafe wood fx pur flooring Silver Oak 3357)",84,"m2",null,0]
[89,"Upper floor - South ","New blinds","supply and fit new black out roller blinds all shades white uniline chalk ",5,"no",169.4,847,"treble blinds See Sheet"]
[89,"Upper floor - South ","Box in Pipe & Paint","box in pipes with ply and apply 2 coats of eggshell white paint",1,"m",null,0,"3 sided"]
[89,"Upper floor - South ","Pinboards","Supply and install new pinboards Sundeala 12mm K Medium Board",6,"no",null,0]
[89,"Upper floor - South ","Whiterock","Supply and install of whiterock Altro whiterock extruded PVCU Sheet W103 EU ",11,"m2",null,0,"Window Elevation "]
[91,"Upper floor - North","Paint walls","Apply 2 coats of eggshell White (3 coats if necessary)  ",50,"m2",null,0,"white"]
[91,"Upper floor - North","Paint Ceiling","Apply 2 coats of eggshell White (3 coats if necessary)  ",84,"m2",null,0]
[91,"Upper floor - North","Facings ","Apply 2 coats of white gloss to the facings",55,"m",null,0]
[91,"Upper floor - North","Paint pipes","Apply 2 coats of blue gloss BS 20 E 51 to the radiators",34,"m",null,0]
[91,"Upper floor - North","Paint RADS","Apply 2 coats of blue gloss BS 20 E 51 to the radiators",8,"m2",null,0,"Remove RADs and fit 2x new at window"]
[91,"Upper floor - North","Paint Doors","Rub down existing doors and apply 2 coats of blue gloss BS 20 E 51 ",2,"m2",null,0]
[91,"Upper floor - North","Door Handle","Remove existing door handle and lock, block up existing holes with timber flush with the door. Fit in new heavy bearing catch lock with double D door handle",1,"no",null,0]
[91,"Upper floor - North","Uplift and remove old carpet","Uplift old carpet/vinyl, remove and dispose off site ",84,"m2",null,0]
[91,"Upper floor - North","Screed Floor","Screed floor with 6mm latex screed",84,"m2",null,0]
[91,"Upper floor - North","New Vinyl","Supply and install new Vinyl (Polysafe wood fx pur flooring Silver Oak 3357)",84,"m2",null,0]
[91,"Upper floor - North","Make good walls/boxing in/whiterock where units have been removed","to be discussed onsite once cupboards/units removed",11,"m2",null,0]
[91,"Upper floor - North","renew sink/worktop","Howdens all equally approved \nbase unit 1000m with full height doors - GGW9191B\nBase unit 500m - GGW9220                                                                                                                               renew 1 sink - install 1000mm enamel white base unit and insert new sink/taps and install 1500 worktop",1,"no",null,0]
[91,"Upper floor - North","New blinds","supply and fit new black out roller blinds all shades white uniline chalk ",5,"no",169.4,847,"treble blinds See Sheet"]
[91,"Upper floor - North","Box in Pipe & Paint","box in pipes with ply and apply 2 coats of eggshell white paint",2,"m",null,0,"2side & 3 sided"]
[91,"Upper floor - North","Whiterock","Supply and install of whiterock Altro whiterock extruded PVCU Sheet W103 EU ",14,"m2",null,0,"Window Elevations"]
[91,"Upper floor - North","Remove old worktops/cupboards/units","Remove old existing worktops/units/cupboards and dispose offsite",12,"m",null,0,"remove worktops at window, no boxing in required"]
[91,"Upper floor - North","Remove Old sink","Remove old sink and dispose offsite",1,"no",null,0,"Remove old units and sinks - 4 Belfast sinks "]
[91,"Upper floor - North","Pinboards","Supply and install new pinboards Sundeala 12mm K Medium Board",4,"no",null,0]
[92,"Circulation ","Make Good walls/remove staples etc","Remove staples and make good walls",31,"m2",null,{"$f":"SUM(E174*G174)","v":0}]
[92,"Circulation ","Paint walls","Apply 2 coats of eggshell White to the top half and bottom half water based eggshell 00A09 grey ",31,"m2",null,0,"1/2 grey, 1/2 white, black skirting"]
[92,"Circulation ","Paint Ceiling","Apply 2 coats of eggshell White (3 coats if necessary)  ",19,"m2",null,0]
[92,"Circulation ","Facings ","Apply 2 coats of white gloss to the facings",25,"m",null,0]
[92,"Circulation ","Skirting","Apply 2 coats of white gloss to the skirting",25,"m",null,0,"Black "]
[92,"Circulation ","Paint RADS","Apply 2 coats of blue gloss BS 20 E 51 to the radiators",1,"no",null,0]
[92,"Circulation ","Paint Doors","Rub down existing doors and apply 2 coats of blue gloss BS 20 E 51",4,"m2",null,0]
[92,"Circulation ","Box in   ","Box in 3 windows and paint ",5,"m",null,0]
[92,"Circulation ","Pinboards","Supply and install new pinboards Sundeala 12mm K Medium Board",2,"no",null,0]
[92,"Circulation ","New Doors ","Doorset Type 1 complete, including all ironmongery; as per drawing 001",1,"no",null,0,"see sheet"]
[92,"Circulation ","New Partition ","Stud Partition complete, as per drawing 002",4,"m2",null,0]
[99,"Main Entrance area","Pinboards","Supply and install new pinboards Sundeala 12mm K Medium Board",4,"no",null,{"$f":"SUM(E185*G185)","v":0}]
[99,"Main Entrance area","Make Good walls/remove staples etc","Remove staples and make good walls",82,"m2",null,0]
[99,"Main Entrance area","Paint walls","Apply 2 coats of eggshell White to the top half and bottom half water based eggshell 00A09 grey ",82,"m2",null,0,"half white half grey"]
[99,"Main Entrance area","Paint Ceiling","Apply 2 coats of eggshell White (3 coats if necessary)  ",58,"m2",null,0]
[99,"Main Entrance area","Skirting","Apply 2 coats of white gloss to the skirting",21,"m",null,0,"black"]
[99,"Main Entrance area","Paint RADS","Apply 2 coats of blue gloss BS 20 E 51 to the radiators",4,"no",null,0]
[99,"Main Entrance area","Uplift and remove old carpet","Uplift old carpet/vinyl, remove and dispose off site ",58,"m2",null,0,"Note - Rhodar may have to carry out these works"]
[99,"Main Entrance area","Screed Floor","Screed floor with 6mm latex screed",58,"m2",null,0]
[99,"Main Entrance area","New Vinyl","Supply and install new Vinyl (Polysafe flooring dark grey concrete 9968)",58,"m2",null,0]
[99,"Main Entrance area","New Fire Doors","Doorset Type 3 complete, including all ironmongery; as per drawing 001",2,"no",null,0,"see sheet"]
[99,"Main Entrance area","New Partition ","Stud Partition complete, as per drawing 002",5,"m2",null,0]
[99,"Main Entrance area","Varnish","2 coats of  colour varnish - Mahogany",12,"m",null,null,"varnish round main entrance doors"]
[105,"Ground Floor Classroom (new)","Paint walls","Apply 2 coats of eggshell White (3 coats if necessary)  ",66,"m2",null,{"$f":"SUM(E197*G197)","v":0},"white"]
[105,"Ground Floor Classroom (new)","Paint Ceiling","Apply 2 coats of eggshell White (3 coats if necessary)  ",44,"m2",null,0]
[105,"Ground Floor Classroom (new)","Facings ","Apply 2 coats of white gloss to the facings",35,"m",null,0,"skirtings and facings"]
[105,"Ground Floor Classroom (new)","Paint pipes","Apply 2 coats of blue gloss BS 20 E 51 to the radiators",15,"m",null,0]
[105,"Ground Floor Classroom (new)","Paint RADS","Apply 2 coats of blue gloss BS 20 E 51 to the radiators",4,"no",null,0]
[105,"Ground Floor Classroom (new)","Paint Doors","Rub down existing doors and apply 2 coats of blue gloss BS 20 E 51",4,"m2",null,0]
[105,"Ground Floor Classroom (new)","Uplift and remove old carpet","Uplift old carpet/vinyl, remove and dispose off site ",44,"m2",null,0]
[105,"Ground Floor Classroom (new)","Screed Floor","Screed floor with 6mm latex screed",44,"m2",null,0]
[105,"Ground Floor Classroom (new)","New Vinyl","Supply and install new Vinyl (Polysafe wood fx pur flooring Silver Oak 3357)",44,"m2",null,0]
[105,"Ground Floor Classroom (new)","New blinds","supply and fit new black out roller blinds all shades white uniline chalk ",3,"no",204.4,613.20000000000005,"treble blinds See Sheet"]
[105,"Ground Floor Classroom (new)","Pinboards","Supply and install new pinboards Sundeala 12mm K Medium Board",2,"no",null,0,"1x whiteboards"]
[106,"Upstairs Corridor","Paint walls","Apply 2 coats of eggshell White to the top half and bottom half water based eggshell 00A09 grey ",109,"m2",null,0,"half white half grey"]
[106,"Upstairs Corridor","Paint Ceiling","Apply 2 coats of eggshell White (3 coats if necessary)  ",39,"m2",null,0]
[106,"Upstairs Corridor","Facings ","Apply 2 coats of white gloss to the facings",5,"m",null,0]
[106,"Upstairs Corridor","Skirting","Apply 2 coats of white gloss to the skirting",5,"m",null,0,"black"]
[106,"Upstairs Corridor","Paint pipes","Apply 2 coats of blue gloss BS 20 E 51 to the radiators",4,"m",null,0]
[106,"Upstairs Corridor","Paint RADS","Apply 2 coats of blue gloss BS 20 E 51 to the radiators",3,"no",null,0]
[106,"Upstairs Corridor","Paint Doors","Rub down existing doors and apply 2 coats of blue gloss BS 20 E 51 ",4,"m2",null,0]
[106,"Upstairs Corridor","Box in Pipe & Paint","box in pipes with ply and apply 2 coats of eggshell white paint",7,"m",null,0,"1x 2sided & 2x 3sided"]
[106,"Upstairs Corridor","Pinboards","Supply and install new pinboards Sundeala 12mm K Medium Board",2,"no",null,0]
[106,"Upstairs Corridor","Banister","2 coats of  colour varnish - Mahogany",9,"m",null,0]
[106,"Upstairs Corridor","Railings","1 undercoat and 2 coats of black metal paint ",9,"m",null,0,"black"]
[107,"Ground Floor Classroom (new)","Paint walls","Apply 2 coats of eggshell White (3 coats if necessary)  ",66,"m2",null,0,"white PRIORITY NEW ROOM"]
[107,"Ground Floor Classroom (new)","Paint Ceiling","Apply 2 coats of eggshell White (3 coats if necessary)  ",44,"m2",null,0]
[107,"Ground Floor Classroom (new)","Facings ","Apply 2 coats of white gloss to the facings",35,"m",null,0,"skirtings and facings"]
[107,"Ground Floor Classroom (new)","Paint pipes","Apply 2 coats of blue gloss BS 20 E 51 to the radiators",15,"m",null,0]
[107,"Ground Floor Classroom (new)","Paint RADS","Apply 2 coats of blue gloss BS 20 E 51 to the radiators",4,"no",null,{"$f":"SUM(E223*G223)","v":0}]
[107,"Ground Floor Classroom (new)","Paint Doors","Rub down existing doors and apply 2 coats of blue gloss BS 20 E 51 ",4,"m2",null,0]
[107,"Ground Floor Classroom (new)","Uplift and remove old carpet","Uplift old carpet/vinyl, remove and dispose off site ",44,"m2",null,0]
[107,"Ground Floor Classroom (new)","Screed Floor","Screed floor with 6mm latex screed",44,"m2",null,0]
[107,"Ground Floor Classroom (new)","New Vinyl","Supply and install new Vinyl (Polysafe wood fx pur flooring Silver Oak 3357)",44,"m2",null,0]
[107,"Ground Floor Classroom (new)","New blinds","supply and fit new black out roller blinds all shades white uniline chalk ",3,"no",233.8,701.40000000000009,"treble blinds See Sheet"]
[107,"Ground Floor Classroom (new)","Pinboards","Supply and install new pinboards Sundeala 12mm K Medium Board",2,"no",null,0,"1x whiteboards"]
[109,"Ground Floor Classroom (new)","Paint walls","Apply 2 coats of eggshell White (3 coats if necessary)  ",66,"m2",null,0,"white PRIORITY NEW ROOM"]
[109,"Ground Floor Classroom (new)","Paint Ceiling","Apply 2 coats of eggshell White (3 coats if necessary)  ",44,"m2",null,0]
[109,"Ground Floor Classroom (new)","Facings ","Apply 2 coats of white gloss to the facings",35,"m",null,0,"facings and skirtings"]
[109,"Ground Floor Classroom (new)","Paint pipes","Apply 2 coats of blue gloss BS 20 E 51 to the radiators",15,"m",null,0]
[109,"Ground Floor Classroom (new)","Paint RADS","Apply 2 coats of blue gloss BS 20 E 51 to the radiators",4,"no",null,0]
[109,"Ground Floor Classroom (new)","Paint Doors","Rub down existing doors and apply 2 coats of blue gloss BS 20 E 51 ",4,"m2",null,0]
[109,"Ground Floor Classroom (new)","Screed Floor","Screed floor with 6mm latex screed",44,"m2",null,0]
[109,"Ground Floor Classroom (new)","New Vinyl","Supply and install new Vinyl (Polysafe wood fx pur flooring Silver Oak 3357)",44,"m2",null,0]
[109,"Ground Floor Classroom (new)","New blinds","supply and fit new black out roller blinds all shades white uniline chalk ",3,"no",233.8,701.40000000000009,"treble blinds See Sheet"]
[109,"Ground Floor Classroom (new)","Pinboards","Supply and install new pinboards Sundeala 12mm K Medium Board",2,"no",null,0,"1x whiteboards"]
[110,"Opposite Upstairs Corridor","Paint walls","Apply 2 coats of eggshell White to the top half and bottom half water based eggshell 00A09 grey ",109,"m2",null,0,"half white half grey"]
[110,"Opposite Upstairs Corridor","Paint Ceiling","Apply 2 coats of eggshell White (3 coats if necessary)  ",39,"m2",null,0]
[110,"Opposite Upstairs Corridor","Facings ","Apply 2 coats of white gloss to the facings",10,"m",null,0]
[110,"Opposite Upstairs Corridor","Skirting","Apply 2 coats of white gloss to the skirting",33,"m",null,0,"black. Includes stair skirtings"]
[110,"Opposite Upstairs Corridor","Paint pipes","Apply 2 coats of blue gloss BS 20 E 51 to the radiators",4,"m",null,0]
[110,"Opposite Upstairs Corridor","Paint RADS","Apply 2 coats of blue gloss BS 20 E 51 to the radiators",3,"no",null,0]
[110,"Opposite Upstairs Corridor","Paint Doors","Rub down existing doors and apply 2 coats of blue gloss BS 20 E 51 ",4,"m2",null,0]
[110,"Opposite Upstairs Corridor","Box in Pipe & Paint","box in pipes with ply and apply 2 coats of eggshell white paint",7,"m",null,0,"1x 2 sided & 2 x 3sided"]
[110,"Opposite Upstairs Corridor","Banister","2 coats of  colour varnish - Mahogany",9,null,null,{"$f":"SUM(E248*G248)","v":0}]
[110,"Opposite Upstairs Corridor","Railings","1 undercoat and 2 coats of black metal paint ",9,null,null,0,"black"]
[113,"Corridor","Paint walls","Apply 2 coats of eggshell White to the top half and bottom half water based eggshell 00A09 grey ",200,"m2",null,0,"half white half grey"]
[113,"Corridor","Paint Ceiling","Apply 2 coats of eggshell White (3 coats if necessary)  ",137,"m2",null,0]
[113,"Corridor","Facings ","Apply 2 coats of white gloss to the facings",150,"m",null,0]
[113,"Corridor","Skirting","Apply 2 coats of white gloss to the skirting",112,"m",null,0,"black"]
[113,"Corridor","Paint pipes","Apply 2 coats of blue gloss BS 20 E 51 to the radiators",5,"m",null,0]
[113,"Corridor","Paint RADS","Apply 2 coats of blue gloss BS 20 E 51 to the radiators",20,"no",null,0]
[113,"Corridor","Paint Doors","Rub down existing doors and apply 2 coats of blue gloss BS 20 E 51 ",94,"m2",null,0]
[113,"Corridor","Pinboards","Supply and install new pinboards Sundeala 12mm K Medium Board",4,"no",null,0]
[113,"Corridor","coathook poles","Apply two coats of eggshell white ",19,"m",null,0]
[113,"Corridor","varnish coat hook boards","2 coats of  colour varnish - Mahogany",43,"m",null,0]
[139,"Boys Toilet","Paint walls","Apply 2 coats of Watco paint - Dark Grey RAL7005",77,"m2",null,0,"all grey"]
[139,"Boys Toilet","Paint Ceiling","Apply 2 coats of eggshell White (3 coats if necessary)  ",35,"m2",null,0]
[139,"Boys Toilet","Paint Cubicles","metal - white  1 undercoat 2 gloss ",13,"m",null,0]
[139,"Boys Toilet","Paint Cubicle Doors","metal doors  1 undercoat 2 coats of gloss  -  Blue",13,"m",null,0]
[139,"Boys Toilet","Uplift and remove old carpet","Uplift old carpet/vinyl, remove and dispose off site ",35,"m2",null,0]
[139,"Boys Toilet","Screed Floor","Screed floor with 6mm latex screed",35,"m2",null,0]
[139,"Boys Toilet","New Vinyl","Supply and install new Vinyl (Polysafe flooring Pale Slate 1200)",35,"m2",null,0]
[139,"Boys Toilet","Box in Pipe & Paint","box in pipes with ply and apply 2 coats of eggshell white paint",5,"m",null,0,"2 sided"]
[148,"Girls Toilet","Remove old worktops/cupboards/units","Remove old existing worktops/units/cupboards and dispose offsite",1,"m",null,{"$f":"SUM(E268*G268)","v":0},"This toilet is being stripped out and made into cupboard"]
[156,"Upper Classroom - The Den","Make Good walls/remove staples etc","Remove staples and make good walls",38,"m2",null,0]
[156,"Upper Classroom - The Den","Paint walls","Apply 2 coats of eggshell White (3 coats if necessary)  ",32,"m2",null,{"$f":"SUM(E270*G270)","v":0},"white"]
[156,"Upper Classroom - The Den","Paint Ceiling","Apply 2 coats of eggshell White (3 coats if necessary)  ",50,"m2",null,0]
[156,"Upper Classroom - The Den","Facings ","Apply 2 coats of white gloss to the facings",37,"m",null,0,"facings and skirtings"]
[156,"Upper Classroom - The Den","Paint pipes","Apply 2 coats of blue gloss BS 20 E 51 to the radiators",18,"m",null,0]
[156,"Upper Classroom - The Den","Paint RADS","Apply 2 coats of blue gloss BS 20 E 51 to the radiators",4,"m2",null,0]
[156,"Upper Classroom - The Den","Paint Doors","Rub down existing doors and apply 2 coats of blue gloss BS 20 E 51 ",2,"m2",null,0]
[156,"Upper Classroom - The Den","Door Handle","Remove existing door handle and lock, block up existing holes with timber flush with the door. Fit in new heavy bearing catch lock with double D door handle",1,"no",null,0]
[156,"Upper Classroom - The Den","Uplift and remove old carpet","Uplift old carpet/vinyl, remove and dispose off site ",50,"m2",null,0]
[156,"Upper Classroom - The Den","Screed Floor","Screed floor with 6mm latex screed",50,"m2",null,0]
[156,"Upper Classroom - The Den","New Vinyl","Supply and install new Vinyl (Polysafe wood fx pur flooring Silver Oak 3357)",50,"m2",null,0]
[156,"Upper Classroom - The Den","Remove Old sink","Remove old sink and dispose offsite",1,"no",null,0]
[156,"Upper Classroom - The Den","renew sink/worktop","Howdens all equally approved \nbase unit 1000m with full height doors - GGW9191B\nBase unit 500m - GGW9220                                                                                                                               renew 1 sink - install 1000mm enamel white base unit and insert new sink/taps and install 1500 worktop",1,"no",null,0,"extra 1000 only"]
[156,"Upper Classroom - The Den","Remove blackboard","Remove blackboard (site decision)and dispose offsite. Make good wall with dot dab 12mm plasterboard and tape and fill and paint 2 coats of eggshell white",1,"m2",null,0]
[156,"Upper Classroom - The Den","Pinboards","Supply and install new pinboards Sundeala 12mm K Medium Board",4,"no",null,0]
[156,"Upper Classroom - The Den","New blinds","supply and fit new black out roller blinds all shades white uniline chalk ",3,"no",179.2,537.59999999999991,"treble blinds See Sheet"]
[156,"Upper Classroom - The Den","Whiterock","Supply and install of whiterock Altro whiterock extruded PVCU Sheet W103 EU ",12,"m2",null,0,"Window Elevation"]
[157,"Upper Classroom","Remove blackboard","Remove blackboard (site decision)and dispose offsite. Make good wall with dot dab 12mm plasterboard and tape and fill and paint 2 coats of eggshell white",1,"m2",null,0]
[157,"Upper Classroom","Pinboards","Supply and install new pinboards Sundeala 12mm K Medium Board",4,"no",null,0,"1x whiteboard"]
[157,"Upper Classroom","New Doors ","Doorset Type 1 complete, including all ironmongery, as per drawing 001",1,"no",null,0,"see sheet"]
[157,"Upper Classroom","Make Good walls/remove staples etc","Remove staples and make good walls",38,"m2",null,0]
[157,"Upper Classroom","Paint walls","Apply 2 coats of eggshell White (3 coats if necessary)  ",32,"m2",null,0,"white"]
[157,"Upper Classroom","Paint Ceiling","Apply 2 coats of eggshell White (3 coats if necessary)  ",50,"m2",null,0]
[157,"Upper Classroom","Facings ","Apply 2 coats of white gloss to the facings",37,"m",null,0,"facings and skirtings"]
[157,"Upper Classroom","Paint RADS","Apply 2 coats of blue gloss BS 20 E 51 to the radiators",4,"m2",null,0]
[157,"Upper Classroom","Paint Doors","Rub down existing doors and apply 2 coats of blue gloss BS 20 E 51 ",2,"m2",null,0]
[157,"Upper Classroom","Door Handle","Remove existing door handle and lock, block up existing holes with timber flush with the door. Fit in new heavy bearing catch lock with double D door handle",1,"no",null,0]
[157,"Upper Classroom","Uplift and remove old carpet","Uplift old carpet/vinyl, remove and dispose off site ",50,"m2",null,0]
[157,"Upper Classroom","Screed Floor","Screed floor with 6mm latex screed",50,"m2",null,0]
[157,"Upper Classroom","New Vinyl","Supply and install new Vinyl (Polysafe wood fx pur flooring Silver Oak 3357)",50,"m2",null,0]
[157,"Upper Classroom","New blinds","supply and fit new black out roller blinds all shades white uniline chalk ",3,"no",214.2,642.59999999999991,"treble blinds See Sheet"]
[157,"Upper Classroom","Whiterock","Supply and install of whiterock Altro whiterock extruded PVCU Sheet W103 EU ",12,"m2",null,0,"Window Elevation"]
[158,"Upper Classroom","Remove blackboard","Remove blackboard (site decision)and dispose offsite. Make good wall with dot dab 12mm plasterboard and tape and fill and paint 2 coats of eggshell white",1,"m2",null,0]
[158,"Upper Classroom","Pinboards","Supply and install new pinboards Sundeala 12mm K Medium Board",4,"no",null,0]
[158,"Upper Classroom","strip electrical ","only four emergency lights to be removed from existing partitions lay aside once new partitions formed reinstate emergency lights. ",1,"no ",null,0,"ceiling plug"]
[158,"Upper Classroom","New Partition ","Stud Partition complete, as per drawing 002",4,"m2",null,0]
[158,"Upper Classroom","Make Good walls/remove staples etc","Remove staples and make good walls",32,"m2",null,{"$f":"SUM(E305*G305)","v":0}]
[158,"Upper Classroom","Paint walls","Apply 2 coats of eggshell White (3 coats if necessary)  ",32,"m2",null,0,"white"]
[158,"Upper Classroom","Paint Ceiling","Apply 2 coats of eggshell White (3 coats if necessary)  ",50,"m2",null,0]
[158,"Upper Classroom","Facings ","Apply 2 coats of white gloss to the facings",37,"m",null,0,"facings and skirtings"]
[158,"Upper Classroom","Paint pipes","Apply 2 coats of blue gloss BS 20 E 51 to the radiators",18,"m",null,0]
[158,"Upper Classroom","Paint RADS","Apply 2 coats of blue gloss BS 20 E 51 to the radiators",4,"m2",null,0]
[158,"Upper Classroom","Paint Doors","Rub down existing doors and apply 2 coats of blue gloss BS 20 E 51 ",8,"m2",null,0]
[158,"Upper Classroom","Door Handle","Remove existing door handle and lock, block up existing holes with timber flush with the door. Fit in new heavy bearing catch lock with double D door handle",2,"no",null,0]
[158,"Upper Classroom","Uplift and remove old carpet","Uplift old carpet/vinyl, remove and dispose off site ",50,"m2",null,0]
[158,"Upper Classroom","Screed Floor","Screed floor with 6mm latex screed",50,"m2",null,0]
[158,"Upper Classroom","New Vinyl","Supply and install new Vinyl (Polysafe wood fx pur flooring Silver Oak 3357)",50,"m2",null,0]
[158,"Upper Classroom","Remove Old sink","Remove old sink and dispose offsite",1,"no",null,0]
[158,"Upper Classroom","renew sink/worktop","Howdens all equally approved \nbase unit 1000m with full height doors - GGW9191B\nBase unit 500m - GGW9220                                                                                                                               renew 1 sink - install 1000mm enamel white base unit and insert new sink/taps and install 1500 worktop",1,"no",null,0,"extra 500 unit "]
[158,"Upper Classroom","New blinds","supply and fit new black out roller blinds all shades white uniline chalk ",3,"no",214.2,642.59999999999991,"treble blinds See Sheet"]
[158,"Upper Classroom","Box in Pipe & Paint","box in pipes with ply and apply 2 coats of eggshell white paint",2,"m",null,0,"2 sided"]
[158,"Upper Classroom","Whiterock","Supply and install of whiterock Altro whiterock extruded PVCU Sheet W103 EU ",12,"m2",null,0,"Window Elevation and Dedo Rails"]
[159,"Upper floor - South ","Remove Old sink","Remove old sink and dispose offsite",1,"no",null,0]
[159,"Upper floor - South ","renew sink/worktop","renew 1 sink - install 1000mm enamel white base unit and insert new sink/taps and install 1500 worktop",1,"no",null,0,"plus 500 base unit"]
[159,"Upper floor - South ","Remove blackboard","Remove blackboard (site decision)and dispose offsite. Make good wall with dot dab 12mm plasterboard and tape and fill and paint 2 coats of eggshell white",1,"m2",null,0]
[159,"Upper floor - South ","Pinboards","Supply and install new pinboards standard size",1,"no",null,0,"whiteboard"]
[159,"Upper floor - South ","Paint walls","Apply 2 coats of eggshell White (3 coats if necessary)  ",50,"m2",null,0,"white"]
[159,"Upper floor - South ","Paint Ceiling","Apply 2 coats of eggshell White (3 coats if necessary)  ",88,"m2",null,0]
[159,"Upper floor - South ","Facings ","Apply 2 coats of white gloss to the facings",55,"m",null,0]
[159,"Upper floor - South ","Paint pipes","Apply 2 coats of blue gloss BS 20 E 51 to the radiators",34,"m",null,0]
[159,"Upper floor - South ","Paint RADS","Apply 2 coats of blue gloss BS 20 E 51 to the radiators",8,"m2",null,0]
[159,"Upper floor - South ","Paint Doors","Rub down existing doors and apply 2 coats of blue gloss BS 20 E 51 ",10,"m2",null,0]
[159,"Upper floor - South ","Door Handle","Remove existing door handle and lock, block up existing holes with timber flush with the door. Fit in new heavy bearing catch lock with double D door handle",2,"no",null,0]
[159,"Upper floor - South ","Uplift and remove old carpet","Uplift old carpet/vinyl, remove and dispose off site ",88,"m2",null,0]
[159,"Upper floor - South ","Screed Floor","Screed floor with 6mm latex screed",88,"m2",null,0]
[159,"Upper floor - South ","New Vinyl","Supply and install new Vinyl (Polysafe wood fx pur flooring Silver Oak 3357)",88,"m2",null,0]
[159,"Upper floor - South ","New blinds","supply and fit new black out roller blinds all shades white uniline chalk ",6,"no",186.2,1117.1999999999998,"treble blinds See Sheet"]
[159,"Upper floor - South ","Whiterock","Supply and install of whiterock Altro whiterock extruded PVCU Sheet W103 EU ",7,"m2",null,0,"Window Elevation "]
[165,"Main Corridor","Paint walls","Apply 2 coats of eggshell White to the top half and bottom half water based eggshell 00A09 grey ",95,"m2",null,0,"1/2 white, 1/2 grey"]
[165,"Main Corridor","Paint Ceiling","Apply 2 coats of eggshell White (3 coats if necessary)  ",65,"m2",null,0]
[165,"Main Corridor","Facings ","Apply 2 coats of white gloss to the facings",65,"m",null,0,"facing and skirtings"]
[165,"Main Corridor","Skirting","Apply 2 coats of white gloss to the skirting",50,"m",null,0,"black"]
[165,"Main Corridor","New Vinyl","Supply and install new Vinyl (Polysafe silent flor pur flooring Silver Oak 9951)",62,"m2",null,0]
[165,"Main Corridor","Uplift and remove old carpet","Uplift old carpet/vinyl, remove and dispose off site ",62,"m2",null,0]
[165,"Main Corridor","Screed Floor","Screed floor with 6mm latex screed",62,"m2",null,0]
[165,"Main Corridor","Pinboards","Supply and install new pinboards Sundeala 12mm K Medium Board",8,"no",null,{"$f":"SUM(E344*G344)","v":0}]
[191,"Ground Floor  Classroom (new)","Paint Ceiling","Apply 2 coats of eggshell White (3 coats if necessary)  ",44,"m2",null,0]
[191,"Ground Floor  Classroom (new)","Facings ","Apply 2 coats of white gloss to the facings",35,"m",null,0,"skirtings and facings"]
[191,"Ground Floor  Classroom (new)","Paint pipes","Apply 2 coats of blue gloss BS 20 E 51 to the radiators",15,"m",null,0]
[191,"Ground Floor  Classroom (new)","Paint RADS","Apply 2 coats of blue gloss BS 20 E 51 to the radiators",4,"no",null,0]
[191,"Ground Floor  Classroom (new)","Paint Doors","Rub down existing doors and apply 2 coats of blue gloss BS 20 E 51 ",4,"m2",null,0]
[191,"Ground Floor  Classroom (new)","Paint walls","Apply 2 coats of eggshell White (3 coats if necessary)  ",66,"m2",null,0,"white"]
[191,"Ground Floor  Classroom (new)","Uplift and remove old carpet","Uplift old carpet/vinyl, remove and dispose off site ",44,"m2",null,0]
[191,"Ground Floor  Classroom (new)","Screed Floor","Screed floor with 6mm latex screed",44,"m2",null,0]
[191,"Ground Floor  Classroom (new)","New Vinyl","Supply and install new Vinyl (Polysafe wood fx pur flooring Silver Oak 3357)",44,"m2",null,0]
[191,"Ground Floor  Classroom (new)","Pinboards","Supply and install new pinboards Sundeala 12mm K Medium Board",2,"no",null,0,"1x white boards"]
["081A","Ground Floor  Classroom","Box in Pipe & Paint","box in pipes with ply and apply 2 coats of eggshell white paint",1,"m2?",null,0,"2 sided"]
["081A","Ground Floor  Classroom","Door Handle","Remove existing door handle and lock, block up existing holes with timber flush with the door. Fit in new heavy bearing catch lock with double D door handle",1,"no",null,0]
["081A","Ground Floor  Classroom","Facings ","Apply 2 coats of white gloss to the facings",42,"m",null,0,"both facings and skirtings"]
["081A","Ground Floor  Classroom","Make Good walls/remove staples etc","Remove staples and make good walls",30,"m2",null,0]
[191,"Ground Floor Classroom ","New blinds","supply and fit new black out roller blinds all shades white uniline chalk ",3,"no",190.4,571.20000000000005,"treble blinds See Sheet"]
["081A","Ground Floor  Classroom","New Vinyl","Supply and install new Vinyl (Polysafe wood fx pur flooring Silver Oak 3357)",67,"m2",null,0,"Includes circulation area 032"]
["081A","Ground Floor  Classroom","Paint Ceiling","Apply 2 coats of eggshell White (3 coats if necessary)  ",67,"m2",null,0]
["081A","Ground Floor  Classroom","Paint Doors","Rub down existing doors and apply 2 coats of blue gloss BS 20 E 51 ",8,"m2",null,0]
["081A","Ground Floor  Classroom","Paint pipes","Apply 2 coats of blue gloss BS 20 E 51 to the radiators",28,"m",null,0]
["081A","Ground Floor  Classroom","Paint RADS","Apply 2 coats of blue gloss BS 20 E 51 to the radiators",8,"no",null,0]
["081A","Ground Floor  Classroom","Paint walls","Apply 2 coats of eggshell White (3 coats if necessary)  ",30,"m2",null,0,"white"]
["081A","Ground Floor  Classroom","Pinboards","Supply and install new pinboards Sundeala 12mm K Medium Board",4,"no",null,0]
["081A","Ground Floor  Classroom","Remove blackboard","Remove blackboard (site decision)and dispose offsite. Make good wall with dot dab 12mm plasterboard and tape and fill and paint 2 coats of eggshell white",1,"m2",null,0]
["081A","Ground Floor  Classroom","Remove Old sink","Remove old sink and dispose offsite",1,"no",null,0]
["081A","Ground Floor  Classroom","renew sink/worktop","Howdens all equally approved \nbase unit 1000m with full height doors - GGW9191B\nBase unit 500m - GGW9220                                                                                                                               renew 1 sink - install 1000mm enamel white base unit and insert new sink/taps and install 1500 worktop",2,"no",null,0]
["081A","Ground Floor  Classroom","Screed Floor","Screed floor with 6mm latex screed",67,"m2",null,0,"facing and skirting"]
["081A","Ground Floor  Classroom","Uplift and remove old carpet","Uplift old carpet/vinyl, remove and dispose off site ",67,"m2",null,0]
["081A","Ground Floor  Classroom","Whiterock","Supply and install of whiterock Altro whiterock extruded PVCU Sheet W103 EU ",20,"m2",null,{"$f":"SUM(E372*G372)","v":0},"window elevation"]
["133+164","Stairwell top/bottom","Paint walls","Apply 2 coats of eggshell White to the top half and bottom half water based eggshell 00A09 grey ",73,"m2",null,0,"half white half grey"]
["133+164","Stairwell top/bottom","Paint Ceiling","Apply 2 coats of eggshell White (3 coats if necessary)  ",27,"m2",null,0]
["133+164","Stairwell top/bottom","Facings ","Apply 2 coats of white gloss to the facings",23,"m",null,0]
["133+164","Stairwell top/bottom","Skirting","Apply 2 coats of white gloss to the skirting",30,"m",null,0,"black. Includes stairs"]
["133+164","Stairwell top/bottom","Paint Doors","Rub down existing doors and apply 2 coats of blue gloss BS 20 E 51 ",6,"m2",null,0]
["133+164","Stairwell top/bottom","Uplift and remove old carpet","Uplift old carpet/vinyl, remove and dispose off site ",16,"m2",null,0,"2m2 at bottom, 4m2 mid & 10m2 top"]
["133+164","Stairwell top/bottom","Screed Floor","Screed floor with 6mm latex screed",16,"m2",null,0]
["133+164","Stairwell top/bottom","New Vinyl","Supply and install new Vinyl (Polysafe silent flor pur flooring Silver Oak 9951)",16,"m2",null,0]
["133+164","Stairwell top/bottom","Pinboards","Supply and install new pinboards Sundeala 12mm K Medium Board",2,"no",null,0]
["133+164","Stairwell top/bottom","Railings","1 undercoat and 2 coats of black metal paint",7,"m",null,0,"black"]
["133+164","Stairwell top/bottom","Banister","  2 coats of  colour varnish - Mahogany",17,"m",null,0,"varnish"]
["133+164","Stairwell top/bottom","New Fire Door","Doorset Type 3 complete, including all ironmongery as per drawing 001",2,"no",null,0,"see sheet"]
["133+164","Stairwell top/bottom","New Partition ","Stud Partition complete, as per drawing 002",5,"m2"]
["37 + 078","Corridor / Circulation at top / Stairwell","Make Good walls/remove staples etc","Remove staples and make good walls",236,"m2",null,0,"64m2 for loc037 and 24m2 for loc078"]
["37 + 078","Corridor / Circulation at top / Stairwell","Paint walls","Apply 2 coats of eggshell White to the top half and bottom half water based eggshell 00A09 grey ",236,"m2",null,0,"1/2 white, 1/2 grey. Varnish handrail 27m, railings 14m2"]
["37 + 078","Corridor / Circulation at top / Stairwell","Paint Ceiling","Apply 2 coats of eggshell White (3 coats if necessary)  ",88,"m2",null,0,"64m2 for loc037 and 24m2 for loc078"]
["37 + 078","Corridor / Circulation at top / Stairwell","Facings ","Apply 2 coats of white gloss to the facings",70,"m",null,0]
["37 + 078","Corridor / Circulation at top / Stairwell","Paint pipes","Apply 2 coats of blue gloss BS 20 E 51 to the radiators",9,"m",null,0]
["37 + 078","Corridor / Circulation at top / Stairwell","Paint RADS","Apply 2 coats of blue gloss BS 20 E 51 to the radiators",5,"no",null,0]
["37 + 078","Corridor / Circulation at top / Stairwell","Paint Doors","Rub down existing doors and apply 2 coats of blue gloss BS 20 E 51",32,"m2",null,0]
["37 + 078","Corridor / Circulation at top / Stairwell","Skirting","Apply 2 coats of white gloss to the skirting",78,"m",null,0,"black. Includes stair skirtings "]
["37 + 078","Corridor / Circulation at top / Stairwell","Box in Pipe & Paint","box in pipes with ply and apply 2 coats of eggshell white paint",4,"m",null,0,"3 sided"]
["37 + 078","Corridor / Circulation at top / Stairwell","Varnish handrail","rub down and apply 2 coats of clear varnish ",27,"m",null,0]
["37 + 078","Corridor / Circulation at top / Stairwell","Paint railings","apply 2 coats of black gloss to railings",14,"m2",null,0]
["37 + 078","Corridor / Circulation at top / Stairwell","New Doors","Doorset Type 3 complete, including all ironmongery, as per drawing 001",4,"no",null,0,"see sheet"]
["37 + 078","Corridor / Circulation at top / Stairwell","Uplift and remove old carpet","Uplift old carpet/vinyl, remove and dispose off site ",88,"m2",null,0]
["37 + 078","Corridor / Circulation at top / Stairwell","Screed Floor","Screed floor with 6mm latex screed",88,"m2",null,0]
["37 + 078","Corridor / Circulation at top / Stairwell","New Vinyl","Supply and install new Vinyl (Polysafe silent flor pur flooring Silver Oak 9951)",88,"m2",null,0]
["37 + 078","Corridor / Circulation at top / Stairwell","Pinboards","Supply and install new pinboards Sundeala 12mm K Medium Board",5,"no",null,0]
["37 + 078","Corridor / Circulation at top / Stairwell","Treds and Risers","Standard black",6,"m",null,0]
["37 + 078","Corridor / Circulation at top / Stairwell","Nosons","All top and bottom to be yellow",6,"m",null,0]
["37 + 078","Corridor / Circulation at top / Stairwell","remove door","as per attached drawing ",1,null,null,null,"remove door - do not replace"]
["37 + 078","Corridor / Circulation at top / Stairwell","paint coathooks poles","1 undercoat and 2 coats of black metal paint ",8,"m",null,{"$f":"SUM(E405*G405)","v":0}]
["37A+B","Corridor","Skirting","Apply 2 coats of white gloss to the skirting",44,"m",null,0,"black"]
["37A+B","Corridor","paint coathooks pole","Apply 2 coats of white gloss to coathook poles",16,"m",null,0]
["37A+B","Corridor","Uplift and remove old carpet","Uplift old carpet/vinyl, remove and dispose off site ",62,"m2",null,0]
["37A+B","Corridor","Screed Floor","Screed floor with 6mm latex screed",62,"m2",null,0]
["37A+B","Corridor","Pinboards","Supply and install new pinboards Sundeala 12mm K Medium Board",5,"no",null,0]
["37A+B","Corridor","Make Good walls/remove staples etc","Remove staples and make good walls",108,"m2",null,0,"Remove all coathooks, extra space??"]
["37A+B","Corridor","Paint walls","Apply 2 coats of eggshell White to the top half and bottom half water based eggshell 00A09 grey ",108,"m2",null,0,"1/2 grey, 1/2 white"]
["37A+B","Corridor","Paint Ceiling","Apply 2 coats of eggshell White (3 coats if necessary)  ",62,"m2",null,0]
["37A+B","Corridor","Facings ","Apply 2 coats of white gloss to the facings",35,"m",null,0,"white"]
["37A+B","Corridor","Paint RADS","Apply 2 coats of blue gloss BS 20 E 51 to the radiators",3,"no",null,0,"red"]
["37A+B","Corridor","Paint Doors","Rub down existing doors and apply 2 coats of blue gloss BS 20 E 51 ",16,"m2",null,0]
["37A+B","Corridor","New Vinyl","Supply and install new Vinyl (Polysafe silent flor pur flooring Silver Oak 9951)",62,"m2",null,0]
["37A+B","Corridor","New Fire Doors ","Doorset Type 3 complete, including all ironmongery, as per drawing 001",2,"no",null,0,"see sheet"]
["37A+B","Corridor","New Partition ","Stud Partition complete, as per drawing 002",10,"m2"]
["81A","IT Suite","Make Good walls/remove staples etc","Remove staples and make good walls",46,"m2",null,0]
["81A","IT Suite","Paint walls","Apply 2 coats of eggshell White (3 coats if necessary)  ",46,"m2",null,0,"all white"]
["81A","IT Suite","Paint Ceiling","Apply 2 coats of eggshell White (3 coats if necessary)  ",68,"m2",null,{"$f":"SUM(E422*G422)","v":0}]
["81A","IT Suite","Facings ","Apply 2 coats of white gloss to the facings",42,"m",null,0,"facings and skirtings"]
["81A","IT Suite","Paint pipes","Apply 2 coats of blue gloss BS 20 E 51 to the radiators",25,"m",null,0]
["81A","IT Suite","Paint RADS","Apply 2 coats of blue gloss BS 20 E 51 to the radiators",6,"no",null,0]
["81A","IT Suite","Paint Doors","Rub down existing doors and apply 2 coats of blue gloss BS 20 E 51 ",4,"m2",null,0]
["81A","IT Suite","Door Handle","Remove existing door handle and lock, block up existing holes with timber flush with the door. Fit in new heavy bearing catch lock with double D door handle",1,"no",null,0]
["081A","Ground Floor  Classroom","New blinds","supply and fit new black out roller blinds all shades white uniline chalk ",6,"no",196,{"$f":"SUM(E428*G428)","v":1176},"treble blinds See Sheet"]
["81A","IT Suite","Box in Pipe & Paint","box in pipes with ply and apply 2 coats of eggshell white paint",3,"m",null,0,"3 sided box in"]
["81A","IT Suite","Whiterock","Supply and install of whiterock Altro whiterock extruded PVCU Sheet W103 EU ",18,"m2",null,0,"bottom walls"]
["81A","IT Suite","Remove blackboard","Remove blackboard (site decision)and dispose offsite. Make good wall with dot dab 12mm plasterboard and tape and fill and paint 2 coats of eggshell white",1,"m2",null,0]
[110,"Opposite Upstairs Corridor","Box in distribution board",null,2,"m2",null,0,"(1200,1400 out 0.3) with a door"]
["81A","IT Suite","Pinboards","Supply and install new pinboards Sundeala 12mm K Medium Board",4,"no",null,0]
["99B","Corridor ","Paint walls","Apply 2 coats of eggshell White to the top half and bottom half water based eggshell 00A09 grey ",30,"m2",null,{"$f":"SUM(E434*G434)","v":0},"half white half grey"]
["99B","Corridor ","Paint Ceiling","Apply 2 coats of eggshell White (3 coats if necessary)  ",11,"m2",null,0]
["99B","Corridor ","Facings ","Apply 2 coats of white gloss to the facings",25,"m",null,0]
["99B","Corridor ","Skirting","Apply 2 coats of white gloss to the skirting",14,"m",null,0,"black"]
["99B","Corridor ","Paint RADS","Apply 2 coats of blue gloss BS 20 E 51 to the radiators",1,"no",null,0]
["99B","Corridor ","Paint Doors","Rub down existing doors and apply 2 coats of blue gloss BS 20 E 51",10,"m2",null,0]
["99B","Corridor ","Uplift and remove old carpet","Uplift old carpet/vinyl, remove and dispose off site ",11,"m2",null,0]
["99B","Corridor ","Screed Floor","Screed floor with 6mm latex screed",11,"m2",null,0]
["99B","Corridor ","New Vinyl","Supply and install new Vinyl (Polysafe silent flor pur flooring Silver Oak 9951)",11,"m2",null,0]
["99B","Corridor ","Pinboards","Supply and install new pinboards Sundeala 12mm K Medium Board",1,"no",null,0]
["99B","Corridor ","New Doors ","Doorset Type 3 complete, including all ironmongery, as per drawing 001",1,"no",null,0]
["113A","Corridor ","Paint walls","Apply 2 coats of eggshell White to the top half and bottom half water based eggshell 00A09 grey ",69,"m2",null,0,"half white half grey"]
["113A","Corridor ","Paint Ceiling","Apply 2 coats of eggshell White (3 coats if necessary)  ",30,"m2",null,0]
["113A","Corridor ","Facings ","Apply 2 coats of white gloss to the facings",20,"m",null,0]
["113A","Corridor ","Skirting","Apply 2 coats of white gloss to the skirting",20,"m",null,{"$f":"SUM(E448*G448)","v":0},"black "]
["113A","Corridor ","Pinboards","Supply and install new pinboards Sundeala 12mm K Medium Board",2,"no",null,0]
["81A","IT Suite","New blinds","supply and fit new black out roller blinds all shades white uniline chalk ",6,"no",196,{"$f":"SUM(E450*G450)","v":1176},"treble blinds See Sheet"]
[]
["PRICING SHCEDULE TOTAL C/F TO SUMMARY",null,null,null,null,null,null,13015.8]

{"sheet":"3. Prov Sums","index":3,"n_rows":107,"n_cols":6,"rows_kept":107,"cut":false,"hidden":false,"merged":[[54,0,54,4]]}
[]
[]
[]
[]
[null,null,null,null,null,""]
["    ","GA GENERAL PRELIMINARIES",""]
["    ","",""]
["    ","A54 PROVISIONAL SUMS",""]
["    ","",""]
["    ","Include the following Provisional sums",""]
["    ","",""]
["    ","For undefined work",""]
["    ","",""]
["   A","additional plaster repairs","","",null,3000]
["    ","","",""]
["   B","additional painterwork","","",null,5000]
["    ","","",""]
["   C","additional flooring","","",null,5000]
[]
["D","additional doors",null,null,null,7000]
[]
["   E","additional timber stud partitions","","",null,5000]
["    ","","",""]
["    ","A55 DAYWORKS",""]
["    ","",""]
["    ","Include the following Provisional sums",""]
["    ","",""]
["    ","Include for all building works, provide the following sums",""]
["    ","for works or costs which cannot entirely be foreseen,",""]
["    ","defined or detailed and for which the valuation shall be",""]
["    ","made in accordance with the Definition of Prime Cost of",""]
["    ","Dayworks (3rd Edition) published by the Royal Institution of",""]
["    ","Chartered Surveyors and the Construction Confederation",""]
["    ","",""]
["   D","prime cost of labour as defined","","",null,1000]
["    ","","",""]
["   E","add for incidental costs, overheads and profit as","",""]
["    ","defined in section 6","%",null,null,{"$f":"D38*F35","v":0}]
["    ","","",""]
["   F","prime cost of material as defined","","",null,750]
["    ","","",""]
["   G","add for incidental costs, overheads and profit as","",""]
["    ","defined in section 6","%",null,null,{"$f":"D43*F40","v":0}]
["    ","","",""]
["   H","prime cost of plant (hired or owned) in accordance","",""]
["    ","with the Schedule of Basic Plant Charges published","",""]
["    ","by the Royal Institution of Chartered  Surveyors","",""]
["    ","(Latest Edition) all as defined in section 5","","",null,500]
["    ","","",""]
["   J","add for incidental costs, overheads and profit as","",""]
["    ","defined in section 6","%",null,null,{"$f":"D51*F48","v":0}]
["    ","","",""]
[null,null,null,null,"To Collection :",{"$f":"SUM(F6:F52)","v":27250}]
[]
["Page  3  /1"]
[null,null,null,null,null,""]
[]
[]
[]
[]
[null,null,null,null,null,""]
[null,""]
[]
[null,"Collection"]
[]
[null,"Page No.  3  /1",null,null,null,{"$f":"Page1","v":27250}]
[]
[]
[]
[]
[]
[]
[]
[]
[]
[]
[]
[]
[]
[]
[]
[]
[]
[]
[]
[]
[]
[]
[]
[]
[]
[]
[]
[]
[]
[]
[]
[]
[]
[]
[]
[]
[]
[null,null,null,null,"To Main Summary :",{"$f":"SUM(F61:F102)","v":27250}]
[]
[null,"Page  3  /2"]
[null,null,null,null,""]